Cogmind - Beta 13 @@@ ROGUE MODE // 2024.04.07 @ 12:37:02 Player: Copyrite Result: Destroyed by as-04880 with Assembled Heavy Rifle Performance ------------- Evolutions (0) 0 Regions Visited (2) 400 Robots Destroyed (14) 70 Value Destroyed (289) 289 Prototype IDs (4) 80 Alien Tech Used (0) 0 Bonus (0) 0 TOTAL SCORE: 839 Bonus ------- None Cogmind --------- Core Integrity 0/250 Matter 255/300 Energy 125/125 System Corruption 0% Temperature Cool (0) Movement Walking (120) Location -10/Mines Parts ------- > --- POWER (1) -------- Light Ion Engine > --- PROPULSION (2) --- Aluminum Leg Flexi-carbon Leg > --- UTILITY (2) ------ Small Storage Unit Signal Interpreter > --- WEAPON (2) ------- Grenade Launcher > --- INVENTORY (8) ---- Aluminum Leg Structural Scanner Improved Terrain Scanner Terrain Scan Processor Targeting Computer Core Shielding Mining Laser Peak State ------------ > --- POWER ------------ Light Ion Engine > --- PROPULSION ------- Aluminum Leg Flexi-carbon Leg > --- UTILITY ---------- Small Storage Unit Signal Interpreter > --- WEAPON ----------- Assault Rifle Grenade Launcher > --- INVENTORY -------- Aluminum Leg Structural Scanner Improved Terrain Scanner Terrain Scan Processor Targeting Computer Core Shielding Grenade Launcher Mining Laser [Rating: 12] Favorites ----------- Power Light Ion Engine Engine Light Ion Engine Propulsion Aluminum Leg Treads Light Treads Leg Aluminum Leg Utility Small Storage Unit Device Structural Scanner Storage Small Storage Unit Processor Signal Interpreter Weapon Mining Claw Energy Gun Medium Laser Ballistic Gun Light Assault Rifle Launcher Grenade Launcher Slashing Weapon Mining Claw Build | -11 -10 -10 ------- Run | Yrd Mat Min Slots Evolved . | . . . Power . | . . . Propulsion . | . . . Utility . | . . . Weapon . | . . . Parts Attached 30 | 4 22 4 Power 6 | 1 4 1 Engine 6 | 1 4 1 Core . | . . . Reactor . | . . . Propulsion 13 | 2 10 1 Treads 2 | . 2 . Leg 11 | 2 8 1 Wheel . | . . . Hover . | . . . Flight . | . . . Utility 3 | 1 2 . Device 1 | . 1 . Storage 1 | 1 . . Processor 1 | . 1 . Hackware . | . . . Protection . | . . . Artifact . | . . . Weapon 8 | . 6 2 Energy Gun 1 | . 1 . Energy Cannon . | . . . Ballistic Gun 4 | . 4 . Ballistic Cannon . | . . . Launcher 2 | . . 2 Special Weapon . | . . . Impact Weapon . | . . . Slashing Weapon 1 | . 1 . Piercing Weapon . | . . . Special Melee Weapon . | . . . Unidentified Prototypes . | . . . Parts Lost 5 | . 3 2 Power 1 | . 1 . Propulsion 2 | . 2 . Utility . | . . . Weapon 2 | . . 2 Highest Loss Streak 2 | . 1 2 To Critical Strikes . | . . . Average Slot Usage (%) 98 | . 98 99 Engine 14 | . 14 14 Treads 1 | . 1 . Leg 26 | . 25 28 Device 7 | . 9 . Storage 14 | . 14 14 Processor 6 | . 4 14 Ballistic Gun 15 | . 16 14 Launcher 3 | . . 13 Slashing Weapon 8 | . 10 . Naked Turns . | . . . Heaviest Build 14 | 10 14 13 Greatest Support 40 | 20 40 30 Greatest Overweight (x) 1 | 1 1 . Average Overweight (x) . | . . . Largest Inventory Capacity 8 | 8 8 8 Average Capacity 7 | 7 8 8 Most Carried 8 | 6 8 8 Average Carried 6 | 3 6 6 Final Capacity 8 | 8 8 8 Final Carried 7 | 6 6 7 Class Distribution -------------------- 100% | Mutant Dominant Class ---------------- Mutant | -10/Materials Mutant | -10/Mines Resources | -11 -10 -10 ----------- Run | Yrd Mat Min Matter Collected 609 | 236 186 187 Remotely . | . . . Salvage Created 393 | . 343 50 Parts 31 | . 23 8 Haulers Intercepted . | . . . Recyclers Shooed 3 | . 1 2 Parts Field Recycled . | . . . Retrieved Matter . | . . . Parts Self-Destructed . | . . . Prevented . | . . . Kills | -11 -10 -10 ------- Run | Yrd Mat Min Combat Hostiles Destroyed 12 | . 12 . Melee 1 | . 1 . Guns 11 | . 11 . Classes Destroyed 4 | . 2 2 Builder 1 | . . 1 Tunneler 1 | . . 1 Swarmer 6 | . 6 . Grunt 6 | . 6 . Best Kill Streak 3 | . 3 2 Combat Bots Only 3 | . 3 . Max Kills in Single Turn 1 | . 1 1 Gunslinging . | . . . Exploded . | . . . Melee 1 | . 1 . Uniques/NPCs Destroyed . | . . . Combat | -11 -10 -10 -------- Run | Yrd Mat Min Hostile Shots Fired 157 | . 136 21 Missed 41 | . 35 6 Damage Taken 1389 | . 1072 317 Core 256 | . 188 68 Absorbed by Shields . | . . . Core Remaining (%) 100 | 100 . . Volleys Fired 68 | . 61 7 Largest 2 | . 2 2 Hottest 60 | . 40 60 Shots Fired 81 | . 73 8 Gun 77 | . 73 4 Cannon . | . . . Launcher 4 | . . 4 Special . | . . . Kinetic 77 | . 73 4 Thermal . | . . . Explosive 4 | . . 4 Electromagnetic . | . . . Robot Hit Streak 20 | . 20 3 Robot Miss Streak 4 | . 4 2 Penetration Max . | . . . Secondary Targets . | . . . Shots Hit Robots 55 | . 50 5 Core Hits 25 | . 21 4 Critical Kills 1 | . 1 . Critical Parts Destroyed 2 | . 1 1 Critical Strikes 3 | . 2 1 Destroy 3 | . 2 1 Melee Attacks 21 | . 21 . Impact . | . . . Slashing 21 | . 21 . Piercing . | . . . Sneak Attacks . | . . . Combat Hostiles . | . . . Follow-up Attacks . | . . . Damage Inflicted 690 | . 526 164 Guns 495 | . 454 41 Cannons . | . . . Explosions 98 | . . 98 Melee 72 | . 72 . Ramming 25 | . . 25 Kinetic 495 | . 454 41 Thermal . | . . . Explosive 98 | . . 98 Electromagnetic . | . . . Impact . | . . . Slashing 72 | . 72 . Piercing . | . . . Highest Corruption . | . . . Average Corruption . | . . . Corruption Purged . | . . . Corruption Blocked . | . . . Overload Shots . | . . . Overflow Damage . | . . . Projectiles . | . . . Explosions . | . . . Melee . | . . . Knockbacks . | . . . Impact . | . . . Kinetic . | . . . Secondary . | . . . Self-Inflicted Damage . | . . . Shots . | . . . Rammed . | . . . Targets Rammed 6 | . . 6 Kicked 6 | . . 6 Crushed . | . . . Highest Temperature 6 | . 6 3 Average Temperature 5 | . 6 3 Received Heat Transfer 472 | . 432 40 Siege Activations . | . . . Robots Corrupted . | . . . Combat Hostiles . | . . . Parts Fried . | . . . Impact Corruptions . | . . . Robots Melted . | . . . Combat Hostiles . | . . . Parts Melted . | . . . Heat Transferred . | . . . Parts Sabotaged . | . . . Parts Stolen . | . . . Parts Stripped . | . . . Power Chain Reactions . | . . . Alert | -11 -10 -10 ------- Run | Yrd Mat Min Peak Influence 175 | . 175 34 Initial 24 | . . 24 Average 46 | . 54 32 Maximum Alert Level . | . . . Low Security (%) 100 | 100 100 100 Level 1 . | . . . Level 2 . | . . . Level 3 . | . . . Level 4 . | . . . Level 5 . | . . . High Security . | . . . Max Security . | . . . Squads Dispatched . | . . . Investigation . | . . . Extermination . | . . . Reinforcement . | . . . Assault . | . . . Garrison . | . . . Intercept . | . . . Searches Triggered . | . . . Construction Impeded . | . . . Haulers Reinforced . | . . . Active Scanning Responses . | . . . Cargo Convoy Interrupts . | . . . Stealth | -11 -10 -10 --------- Run | Yrd Mat Min Distress Signals 1 | . 1 . Communications Jammed . | . . . Distress Signals . | . . . Times Spotted 40 | . 27 13 Peak Tracking Total 9 | . 6 9 Tactical Retreats 4 | . 3 1 Traps | -11 -10 -10 ------- Run | Yrd Mat Min Traps Triggered 1 | . 1 . Indirectly . | . . . Trap Hack Attempts . | . . . Triggered . | . . . Disarmed . | . . . Reprogrammed . | . . . Reused . | . . . Traps Extracted . | . . . Installed . | . . . Triggered . | . . . Machines | -11 -10 -10 ---------- Run | Yrd Mat Min Machines Disabled . | . . . Max in Single Turn . | . . . Machines Repaired . | . . . Machines Dismantled . | . . . Machines Sabotaged . | . . . Overloaded Fab Kills . | . . . Hacking | -11 -10 -10 --------- Run | Yrd Mat Min Machines Accessed 7 | . 7 . Terminals 7 | . 7 . Fabricators . | . . . Repair Stations . | . . . Recycling Units . | . . . Scanalyzers . | . . . Garrison Access . | . . . Total Hacks 18 | . 18 . Successful 13 | . 13 . Failed 5 | . 5 . Catastrophic 1 | . 1 . Database Lockouts . | . . . Manual 13 | . 13 . Terminals 18 | . 18 . Fabricators . | . . . Repair Stations . | . . . Recycling Units . | . . . Scanalyzers . | . . . Garrison Access . | . . . Terminal Hacks 8 | . 8 . Robot Analysis 1 | . 1 . Prototype ID Bank 2 | . 2 . Branch Access Points 1 | . 1 . Alert Level 2 | . 2 . Unreport Threat 1 | . 1 . Investigation Status 1 | . 1 . Fabricator Hacks . | . . . Repair Station Hacks . | . . . Recycling Unit Hacks . | . . . Scanalyzer . | . . . Garrison Access Hacks . | . . . Unauthorized Hacks 5 | . 5 . Terminals 5 | . 5 . Botnet 5 | . 5 . Fabricators . | . . . Repair Stations . | . . . Recycling Units . | . . . Scanalyzers . | . . . Garrison Access . | . . . Data Cores Recovered . | . . . Used . | . . . Hacking Detections 2 | . 2 . Full Trace Events . | . . . Feedback Events . | . . . Feedback Blocked . | . . . Robot Schematics Acquired . | . . . Robots Built . | . . . Authchips . | . . . Time . | . . . Total Robot Build Rating . | . . . Part Schematics Acquired . | . . . Parts Built . | . . . Authchips . | . . . Time . | . . . Total Part Build Rating . | . . . Parts Repaired . | . . . Time . | . . . Parts Recycled . | . . . Recycled Matter . | . . . Retrieved Matter . | . . . Retrieved Components . | . . . Parts Scanalyzed . | . . . Part Schematics Acquired . | . . . Parts Damaged . | . . . Bothacking | -11 -10 -10 ------------ Run | Yrd Mat Min Used RIF Installer . | . . . Robots Hacked . | . . . Non-combat . | . . . Combat . | . . . Robot Hacks Applied . | . . . Relay Couplers Released . | . . . Fabnet Peak Effective % . | . . . Robots Rewired . | . . . Allies Hacked . | . . . Hacks Repelled . | . . . Allies | -11 -10 -10 -------- Run | Yrd Mat Min Total Allies . | . . . Largest Group . | . . . Highest-Rated Group . | . . . Highest-Rated Ally . | . . . Total Orders . | . . . Ally Attacks . | . . . Total Damage . | . . . Kills . | . . . Allies Corrupted . | . . . Allies Melted . | . . . Intel | -11 -10 -10 ------- Run | Yrd Mat Min Robot Analysis Total 1 | . 1 . Derelict Logs Recovered 1 | . . 1 Drone Launches . | . . . Drone Recoveries . | . . . Exploration | -11 -10 -10 ------------- Run | Yrd Mat Min Turns Passed 1338 | 71 957 310 Spaces Moved 849 | 51 570 228 Core 6 | 6 . . Treads 28 | . 28 . Legs 815 | 45 542 228 Wheels . | . . . Hover . | . . . Flight . | . . . Fastest Speed 50 | 50 120 120 Average Speed 121 | 115 122 120 Slowest Speed 190 | 120 190 120 Overloaded Moves . | . . . Propulsion Burnouts . | . . . Robots Hopped . | . . . Cave-ins Triggered . | . . . Exploration Rate (%) 50 | 4 89 59 Regions Visited 2 Branch Regions 1 Pre-discovered Areas . | . . . Known Exits Taken 1 | . 1 . Unknown Exits Taken 1 | 1 . . Scrap Searched 1 | . . 1 Spaces Dug 7 | . 7 . Terrain Destroyed 28 | . 7 21 Melee 7 | . 7 . Projectile . | . . . AOE 21 | . . 21 Terrain Rammed . | . . . Walls Destroyed . | . . . Machines Disabled . | . . . Actions | -11 -10 -10 --------- Run | Yrd Mat Min Total 1039 | 61 720 258 Wait 35 | 1 33 1 Move 847 | 50 569 228 Hop . | . . . Pick Up 17 | 6 5 6 Fast Attach 7 | 4 3 . Attach 7 | . 6 1 Detach . | . . . Swap 16 | . 13 3 Drop 15 | . 9 6 Fire 68 | . 61 7 Melee 21 | . 21 . Ram . | . . . Kick 6 | . . 6 Crush . | . . . Escape Stasis . | . . . Rewire . | . . . Trap . | . . . Miscellaneous . | . . . Route ------- -11/Scrapyard -10/Materials (discovered 4 exits: *Mat x2 / *Min x2) -10/Mines (discovered 2 exits: *Mat / Sub) History --------- Turn | Location | Event 8 | -11/Scrapyard | Discovered new exit (range 16) 72 | -11/Scrapyard | Entered Materials 292 | -10/Materials | Discovered new exit (range 11) 316 | -10/Materials | Build established: Mutant 479 | -10/Materials | Discovered new exit (range 16) 732 | -10/Materials | Identified exit to Materials 788 | -10/Materials | Core integrity fell below 50% 933 | -10/Materials | Discovered exit to Materials (range 9) 944 | -10/Materials | Identified exit to Mines 1029 | -10/Materials | Entered Mines 1068 | -10/Mines | Met a Derelict bent on vengeance 1103 | -10/Mines | Discovered exit to Materials (range 8) 1169 | -10/Mines | Identified exit to Subcaves 1256 | -10/Mines | Assembled infested the area 1261 | -10/Mines | Assisted by a Guerilla fighting off Assembled 1327 | -10/Mines | Core integrity fell below 20% 1339 | -10/Mines | Destroyed by as-04880 with Assembled Heavy Rifle Last Messages --------------- K-01 Serf collects debris. U-05 Engineer lays Concrete. The unstable cave ceiling collapses. as-23159 sneak attacks. K-01 Serf collects debris. as-10949 sneak attacks. Acquired 10 matter. Kicked R-06 Scavenger. as-17479 destroyed. Assault Rifle destroyed. as-82137 destroyed. D-53 Grenadier Imp. Light Armor Plating severed. as-37297 destroyed. as-15307 destroyed. The unstable cave ceiling collapses. D-53 Grenadier destroyed. The unstable cave ceiling collapses. Grenade Launcher destroyed. The unstable cave ceiling collapses. U-05 Engineer lays Concrete. Map ----- +----------------------------------------------------+ | | | | | ?????????????????????????????????????????????????? | | ?????????????????????????????????????????????????? | | ?????????????????????????????????????????????????? | | ?????????????????????????????????????????????????? | | ?????????????????????????????????????????????????? | | ?????????????????????????????????????????????????? | | ?????????????????????????????????????????????????? | | ?????????????????????????????????????????????????? | | ?????????????????????????????????????????????????? | | ?????????????????????????????????????????????????? | | ?????????????????????????????????????????????????? | | ????????????????###??????????????????????????????? | | ?????????????? #?????????????????????????????? | | ?????????????? ????????????????????????????? | | ????????????? ????????????????????????????? | | ????????????? < ???????????????????????????? | | ?????????????? ???????????????????????????? | | ??????????????? ??????????????????????????? | | ????????????????? ??????????????????????????? | | ????????????????# # a ????###??????????????????? | | ?????????????????# #### ##?????????????????? | | ?????????????????# #?????????????????? | | ????########?????# #?????????????????? | | ???## ######??# @ #??????????????????? | | ### #??###### ##??????????????????? | | #???#?????### ##?????????????????? | | #?? #?????# #?????????????????? | | ##? ######## a #?????????????????? | | ## # ##?????????????????? | | a # ????????????????? | | ## % ####### ??????? | | #### #?????# %! ??????? | | #??# ##?????## ## ??????? | | # #??# ##????#### ### ### #??????? | | # #??# ##?????#"## #??#######???????? | | ## ##??## ##??????#%!* #####????# #???????? | | ?####?????# ##???????#=######??????### #???????? | | ??????????# #????????#%#?####?????## #???????? | | ??????????# ##########=### ####??# ##??????? | | ??????????# % = ##?# ######?? | | ??????????############ #??# #?? | | ?????????????????## #??#### #? | | ?????????????????# # ##?????# #### #? | | ?????????????????## %[ ###??????# #???????#? | | ??????????????????# % ##????????# #????????? | | ??????????????????# ##????????# #????????? | | ?????????????????### %= #######??# #????????? | | ?????????????????# # # #### #####????? | +----------------------------------------------------+ Best States ------------- Heat Dissipation 25 Energy Generation 10 Energy Capacity 250 Matter Stores 300 Matter Capacity 300 Sight Range 16 Terrain Scan Density 10 Evasion (%) 55 Recoil Reduction 2 Item Schematics ----------------- None Robot Schematics ------------------ None Fabricated ------------ Nothing Alien Tech Used ----------------- None Achievements -------------- root@ Challenges ------------ None Game ------ Seed ScrapLargeLink Manual? 0 Play Time 00:18:19 Cumulative 11.8 hours Start 2024.04.07 @ 12:13:05 End 2024.04.07 @ 12:37:02 Sessions 1 Manual Loads 0 Difficulty Rogue Special Mode None Game No. 20 Rogue 20 Adventurer 0 Explorer 0 Win Type - Total 0 Types 0/0/0/0/0/0/0/0/0 Lore% 9 Gallery% 17 Achievement% 19 Wizard Run 0 Options --------- Layout 1 ASCII 0 Keyboard 0 Movement Numpad Keybinds 0 Fullscreen 1 Font 32/SmallcapsGlow Map View 50x35 Zoom Use 0% Tactical HUD 0 Map Filters NONE Filters NONE Steam 1 RUN: 717e6791-2e18-444a-bcc8-f991f91cd1fd